Cogmind - Beta 15 @@@ ROGUE MODE // 2025.05.13 @ 17:13:40 Player: Sunvar Result: Destroyed by NM-K6J(j) with Overtuned Pulse Rifle Performance ------------- Evolutions (0) 0 Regions Visited (3) 600 Robots Destroyed (36) 180 Value Destroyed (800) 800 Prototype IDs (13) 260 Alien Tech Used (0) 0 Bonus (606) 606 TOTAL SCORE: 2446 Bonus ------- Registered with UFD 300 Met Optimus in HQ 500 Friendly Fire -194 Cogmind --------- Core Integrity 0/250 Matter 290/300 Energy 160/160 System Corruption 0% Temperature Cool (12) Movement Flying (37) Location -7/Scraptown Parts ------- > --- POWER (1) -------- Light Nuclear Core > --- PROPULSION (2) --- Xenon Bombardment Thruster Xenon Bombardment Thruster > --- UTILITY (2) ------ Enhanced Optical Array Makeshift Hacking Suite > --- WEAPON (2) ------- Companion Sword > --- INVENTORY (5) ---- Light Nuclear Core Improved Cryofiber Web Machine Analyzer CPS Tube (2) DRS Beacon (Ready) Peak State ------------ > --- POWER ------------ Light Nuclear Core > --- PROPULSION ------- Xenon Bombardment Thruster Xenon Bombardment Thruster > --- UTILITY ---------- Enhanced Optical Array Improved Light Armor Plating > --- WEAPON ----------- Rocket Launcher Companion Sword > --- INVENTORY -------- Light Nuclear Core Improved Cryofiber Web Machine Analyzer CPS Tube DRS Beacon [Rating: 29] Favorites ----------- Power Makeshift Power Source Engine Makeshift Power Source Power Core Light Nuclear Core Propulsion Light Treads Treads Light Treads Flight Unit Xenon Bombardment Thruster Utility Light Armor Plating Device Seismic Detector Storage High-capacity Storage Unit Processor Enhanced Optical Array Hackware Makeshift Hacking Suite Protection Light Armor Plating Weapon Spread Laser Energy Gun Spread Laser Ballistic Gun Light Assault Rifle Launcher Rocket Launcher Special Weapon Mining Laser Slashing Weapon Companion Sword Build | -11 -10 -10 -7 ------- Run | Yrd Mat Sub Scr Slots Evolved . | . . . . Power . | . . . . Propulsion . | . . . . Utility . | . . . . Weapon . | . . . . Parts Attached 33 | 7 8 7 11 Power 6 | 1 1 2 2 Engine 5 | 1 1 2 1 Core 1 | . . . 1 Reactor . | . . . . Propulsion 6 | 2 . 1 3 Treads 4 | 2 . 1 1 Leg . | . . . . Wheel . | . . . . Hover . | . . . . Flight 2 | . . . 2 Utility 9 | 2 2 2 3 Device 1 | 1 . . . Storage 3 | 1 1 1 . Processor 1 | . . . 1 Hackware 1 | . . . 1 Protection 3 | . 1 1 1 Artifact . | . . . . Weapon 12 | 2 5 2 3 Energy Gun 6 | 2 2 1 1 Energy Cannon . | . . . . Ballistic Gun 3 | . 3 . . Ballistic Cannon . | . . . . Launcher 1 | . . . 1 Special Weapon 1 | . . 1 . Impact Weapon . | . . . . Slashing Weapon 1 | . . . 1 Piercing Weapon . | . . . . Special Melee Weapon . | . . . . Unidentified Prototypes 1 | . . . 1 Parts Lost 5 | . 1 4 . Power 2 | . 1 1 . Propulsion 1 | . . 1 . Utility 1 | . . 1 . Weapon 1 | . . 1 . Highest Loss Streak 1 | . 1 1 . To Critical Strikes . | . . . . Average Backups 15 | 3 9 17 17 Power 1 | 1 1 1 . Propulsion 3 | 2 3 3 3 Utility 3 | . . 3 5 Weapon 7 | . 4 9 6 Tool/Special . | . . . . Unused Backups 56 | . 9 10 37 Power 4 | . . 1 3 Propulsion 12 | . 5 2 5 Utility 12 | . 1 1 10 Weapon 26 | . 3 6 17 Tool/Special 2 | . . . 2 Average Slot Usage (%) 99 | . 99 99 98 Engine 13 | . 13 13 13 Treads 27 | . 28 28 27 Device 1 | . 14 . . Storage 13 | . 14 14 13 Protection 12 | . . 13 13 Energy Gun 22 | . 18 21 24 Ballistic Gun 1 | . 8 . . Special Weapon 3 | . . 6 . Peak Build Rating 29 | 7 11 17 29 Average Rating 15 | 5 7 14 20 On Entrance 8 | . 7 11 17 Naked Turns . | . . . . Heaviest Build 59 | 13 32 53 59 Greatest Support 42 | 40 40 40 42 Greatest Overweight (x) 1 | . . 1 1 Average Overweight (x) . | . . . . Largest Inventory Capacity 20 | 8 15 20 20 Average Capacity 17 | 7 12 17 19 Most Carried 20 | 7 15 20 20 Average Carried 16 | 3 9 17 18 Final Capacity 20 | 8 15 20 5 Final Carried 20 | 7 15 20 5 Class Distribution -------------------- 87% | Mutant 12% | Derelict-Mutant Dominant Class ---------------- Mutant | -10/Materials Mutant | -10/Subcaves Mutant | -7/Scraptown Resources | -11 -10 -10 -7 ----------- Run | Yrd Mat Sub Scr Matter Collected 700 | 270 68 242 120 Remotely . | . . . . Salvage Created 1004 | 134 549 233 88 Parts 65 | 17 28 17 3 Haulers Intercepted 1 | . 1 . . Recyclers Shooed 3 | . 3 . . Parts Field Recycled . | . . . . Retrieved Matter . | . . . . Parts Self-Destructed 21 | . . 17 4 Prevented . | . . . . Kills | -11 -10 -10 -7 ------- Run | Yrd Mat Sub Scr Combat Hostiles Destroyed 20 | . 9 10 1 Melee 1 | . . . 1 Guns 19 | . 9 10 . Classes Destroyed 11 | 2 5 2 2 Worker 3 | 1 2 . . Tunneler 7 | 7 . . . Hauler 1 | . 1 . . Recycler 1 | . 1 . . Watcher 3 | . 3 . . Swarmer 3 | . 3 . . Grunt 6 | . 6 . . Sentry 1 | . . 1 . Subdweller 9 | . . 9 . Federalist 1 | . . . 1 Explorer 1 | . . . 1 Best Kill Streak 4 | 3 4 2 1 Combat Bots Only 4 | . 4 2 1 Max Kills in Single Turn 1 | 1 1 1 1 Gunslinging . | . . . . Exploded . | . . . . Melee 1 | . . . 1 Uniques/NPCs Destroyed . | . . . . Combat | -11 -10 -10 -7 -------- Run | Yrd Mat Sub Scr Hostile Shots Fired 88 | . 40 33 15 Missed 22 | . 12 6 4 Hits 66 | . 28 27 11 Melee 1 | . . . 1 Projectile 65 | . 28 27 10 AOE 3 | . . 3 . Critical Strikes 1 | . . 1 . Damage Taken 1365 | . 349 830 186 Core 267 | . 60 162 45 Absorbed by Shields . | . . . . Core Remaining (%) 100 | 100 . . . Volleys Fired 146 | 21 44 81 . Largest 2 | 2 2 2 . Hottest 130 | 100 100 130 . Shots Fired 234 | 42 88 104 . Gun 176 | 42 88 46 . Cannon . | . . . . Launcher . | . . . . Special 58 | . . 58 . Kinetic 43 | . 43 . . Thermal 191 | 42 45 104 . Explosive . | . . . . Electromagnetic . | . . . . Robot Hit Streak 22 | 7 22 17 . Robot Miss Streak 5 | 5 5 4 . Penetration Max . | . . . . Secondary Targets 1 | . 1 . . Max Gunslinging Chain 1 | . 1 . . Shots Hit Robots 132 | 26 60 42 4 Core Hits 92 | 9 28 53 2 Critical Kills . | . . . . Critical Parts Destroyed . | . . . . Critical Strikes 5 | 3 2 . . Burn 5 | 3 2 . . Melee Attacks 4 | . . . 4 Impact . | . . . . Slashing 4 | . . . 4 Piercing . | . . . . Sneak Attacks 1 | . . . 1 Combat Hostiles . | . . . . Follow-up Attacks . | . . . . Damage Inflicted 1839 | 338 700 681 120 Guns 1711 | 338 692 681 . Cannons . | . . . . Explosions . | . . . . Melee 120 | . . . 120 Ramming 8 | . 8 . . Kinetic 226 | . 226 . . Thermal 1485 | 338 466 681 . Explosive . | . . . . Electromagnetic . | . . . . Impact . | . . . . Slashing 120 | . . . 120 Piercing . | . . . . Highest Corruption . | . . . . Average Corruption . | . . . . Corruption Purged . | . . . . Corruption Blocked . | . . . . Overload Shots . | . . . . Overflow Damage . | . . . . Projectiles . | . . . . Explosions . | . . . . Melee . | . . . . Knockbacks . | . . . . Impact . | . . . . Kinetic . | . . . . Secondary . | . . . . Self-Inflicted Damage . | . . . . Shots . | . . . . Rammed . | . . . . Targets Rammed 1 | . 1 . . Kicked . | . . . . Crushed 1 | . 1 . . Highest Temperature 273 | 273 226 132 13 Average Temperature 65 | 84 67 43 5 Received Heat Transfer 303 | . 162 69 72 Effects 2 | 2 . . . Interference 2 | 2 . . . Siege Activations . | . . . . Martial Activations . | . . . . Shielding Activations . | . . . . Robots Disrupted . | . . . . Combat Hostiles . | . . . . Robots Corrupted . | . . . . Combat Hostiles . | . . . . Parts Fried . | . . . . Impact Corruptions . | . . . . Robots Melted . | . . . . Combat Hostiles . | . . . . Parts Melted 6 | 2 1 2 1 Heat Transferred 3551 | 1221 1480 850 . Parts Sabotaged . | . . . . Parts Stolen . | . . . . Parts Stripped . | . . . . Power Chain Reactions . | . . . . Alert | -11 -10 -10 -7 ------- Run | Yrd Mat Sub Scr Maximum Alert Level . | . . . . Low Security (%) 100 | 100 100 . . Level 1 . | . . . . Level 2 . | . . . . Level 3 . | . . . . Level 4 . | . . . . Level 5 . | . . . . High Security . | . . . . Max Security . | . . . . Peak Influence 126 | 15 126 . . Initial . | . . . . Average 28 | 1 35 . . Influence Increases 343 | 40 283 20 . Destroy 0b10 Robot/C 200 | . 180 20 . Destroy 0b10 Robot/NC 75 | 40 35 . . Destroy Leader 48 | . 48 . . Successful Hack 19 | . 19 . . Destroy Structure 1 | . 1 . . Influence Decreases 343 | 40 273 30 . Entered New Map 6 | . . 6 . Time Decay 327 | 40 263 24 . Lost Part 10 | . 10 . . Squads Dispatched 2 | . 2 . . Investigation 1 | . 1 . . Extermination . | . . . . Reinforcement 1 | . 1 . . Assault . | . . . . Garrison . | . . . . Intercept . | . . . . Searches Triggered . | . . . . Construction Impeded . | . . . . Haulers Reinforced . | . . . . Active Scanning Responses . | . . . . Cargo Convoy Interrupts . | . . . . Stealth | -11 -10 -10 -7 --------- Run | Yrd Mat Sub Scr Distress Signals 1 | . 1 . . Communications Jammed . | . . . . Distress Signals . | . . . . Times Spotted 38 | . 15 10 13 Peak Tracking Total 7 | . 3 2 7 Tactical Retreats 2 | . . 1 1 Traps | -11 -10 -10 -7 ------- Run | Yrd Mat Sub Scr Traps Triggered 4 | . 1 3 . Indirectly . | . . . . Trap Hack Attempts . | . . . . Triggered . | . . . . Disarmed . | . . . . Reprogrammed . | . . . . Reused . | . . . . Traps Extracted . | . . . . Installed . | . . . . Triggered . | . . . . Machines | -11 -10 -10 -7 ---------- Run | Yrd Mat Sub Scr Machines Disabled 1 | . . 1 . Max in Single Turn 1 | . . 1 . Machines Repaired . | . . . . Machines Dismantled . | . . . . Machines Sabotaged . | . . . . Overloaded Fab Kills . | . . . . Hacking | -11 -10 -10 -7 --------- Run | Yrd Mat Sub Scr Machines Accessed 13 | . 4 3 6 Terminals 3 | . 3 . . Fabricators . | . . . . Repair Stations . | . . . . Recycling Units 1 | . 1 . . Scanalyzers . | . . . . Garrison Access . | . . . . Total Hacks 40 | . 10 6 24 Successful 33 | . 3 6 24 Failed 7 | . 7 . . Catastrophic 2 | . 2 . . Database Lockouts . | . . . . Manual 9 | . 9 . . Terminals 7 | . 7 . . Fabricators . | . . . . Repair Stations . | . . . . Recycling Units 3 | . 3 . . Scanalyzers . | . . . . Garrison Access . | . . . . Terminal Hacks 32 | . 2 6 24 Record 21 | . . 4 17 Robot Analysis 8 | . 2 . 6 Open Door 2 | . . 1 1 Proto ID Catalog 1 | . . 1 . Fabricator Hacks . | . . . . Repair Station Hacks . | . . . . Recycling Unit Hacks . | . . . . Scanalyzer . | . . . . Garrison Access Hacks . | . . . . Unauthorized Hacks 1 | . 1 . . Terminals 1 | . 1 . . Botnet 1 | . 1 . . Fabricators . | . . . . Repair Stations . | . . . . Recycling Units . | . . . . Scanalyzers . | . . . . Garrison Access . | . . . . Data Cores Recovered . | . . . . Used . | . . . . Hacking Detections 4 | . 4 . . Full Trace Events 2 | . 2 . . Feedback Events . | . . . . Feedback Blocked . | . . . . Robot Schematics Acquired . | . . . . Robots Built . | . . . . Authchips . | . . . . Time . | . . . . Total Robot Build Rating . | . . . . Part Schematics Acquired . | . . . . Parts Built . | . . . . Authchips . | . . . . Time . | . . . . Total Part Build Rating . | . . . . Parts Repaired . | . . . . Time . | . . . . Parts Recycled . | . . . . Recycled Matter . | . . . . Retrieved Matter . | . . . . Retrieved Components . | . . . . Parts Scanalyzed . | . . . . Part Schematics Acquired . | . . . . Parts Damaged . | . . . . Bothacking | -11 -10 -10 -7 ------------ Run | Yrd Mat Sub Scr Used RIF Installer . | . . . . Robots Hacked . | . . . . Non-combat . | . . . . Combat . | . . . . Robot Hacks Applied . | . . . . Relay Couplers Released . | . . . . Fabnet Peak Effective % . | . . . . Robots Rewired . | . . . . Allies Hacked . | . . . . Hacks Repelled . | . . . . Allies | -11 -10 -10 -7 -------- Run | Yrd Mat Sub Scr Total Allies . | . . . . Largest Group . | . . . . Highest-Rated Group . | . . . . Highest-Rated Ally . | . . . . Total Orders . | . . . . Ally Attacks . | . . . . Total Damage . | . . . . Kills . | . . . . Allies Corrupted . | . . . . Allies Melted . | . . . . Intel | -11 -10 -10 -7 ------- Run | Yrd Mat Sub Scr Active Infowar (turns) 1373 | 62 1185 . 126 Optics 126 | . . . 126 Seismic 1247 | 62 1185 . . Robot Analysis Total 8 | . 2 . 6 Derelict Logs Recovered 6 | . . 1 5 Drone Launches . | . . . . Drone Recoveries . | . . . . Exploration | -11 -10 -10 -7 ------------- Run | Yrd Mat Sub Scr Turns Passed 9349 | 309 1187 4309 3544 Spaces Moved 4286 | 144 572 1990 1580 Core 4 | 4 . . . Treads 4084 | 140 572 1990 1382 Legs . | . . . . Wheels . | . . . . Hover . | . . . . Flight 198 | . . . 198 Fastest Speed 37 | 50 160 160 37 Average Speed 199 | 156 160 197 219 Slowest Speed 250 | 160 160 250 250 Overloaded Moves . | . . . . Propulsion Burnouts . | . . . . Robots Hopped 5 | . . . 5 Potential Cave-ins 2 | . . 2 . Cave-ins Triggered . | . . . . Exploration Rate (%) 64 | 7 75 92 85 Regions Visited 3 Branch Regions 2 Pre-discovered Areas 2 | . . 2 . Known Exits Taken . | . . . . Unknown Exits Taken 3 | 1 1 1 . Scrap Searched 22 | . . 15 7 Spaces Dug 10 | . . 10 . Terrain Destroyed 12 | . . 12 . Melee . | . . . . Projectile 12 | . . 12 . AOE . | . . . . Terrain Rammed . | . . . . Walls Destroyed . | . . . . Machines Disabled . | . . . . Actions | -11 -10 -10 -7 --------- Run | Yrd Mat Sub Scr Total 4761 | 182 767 2145 1667 Wait 138 | 4 110 21 3 Move 4275 | 143 571 1989 1572 Hop 3 | . . . 3 Pick Up 74 | 7 19 18 30 Fast Attach 17 | 7 3 . 7 Attach 6 | . 1 4 1 Detach 2 | . . . 2 Swap 26 | . 4 18 4 Drop 69 | . 14 14 41 Fire 146 | 21 44 81 . Melee 4 | . . . 4 Ram . | . . . . Kick . | . . . . Crush 1 | . 1 . . Escape Stasis . | . . . . Rewire . | . . . . Trap . | . . . . Miscellaneous . | . . . . Route ------- -11/Scrapyard -10/Materials (discovered 5 exits: [*Mat x2] / [*Min x2] / *Sub) -10/Subcaves (discovered 4 exits: [*Mat x2] / [*Rec] / *Scr) -7/Scraptown (discovered 2 exits: [*Fac x2]) History --------- Turn | Location | Event 5 | -11/Scrapyard | Discovered new exit (range 15) 310 | -11/Scrapyard | Entered Materials 311 | -10/Materials | Build established: Mutant 636 | -10/Materials | Discovered new exit (range 10) 692 | -10/Materials | Discovered new exit (range 12) 872 | -10/Materials | Discovered new exit (range 10) 1289 | -10/Materials | Discovered new exit (range 11) 1481 | -10/Materials | Discovered new exit (range 10) 1497 | -10/Materials | Entered Subcaves 1498 | -10/Subcaves | Shifting Twisted Machinery released Sub. Laser 1498 | -10/Subcaves | Approached by a straggling Scientist 1500 | -10/Subcaves | Shifting Twisted Machinery released Piercing Trap 1503 | -10/Subcaves | Scientist uncovered a shortcut to Scraptown 1546 | -10/Subcaves | Learned location of Zion (-7) 1546 | -10/Subcaves | Met a Zionite searching for "candidates" 1686 | -10/Subcaves | Shifting Twisted Machinery released Sub. Shrapnel Launcher 1710 | -10/Subcaves | Shifting Twisted Machinery released Spk. Treads 2436 | -10/Subcaves | Learned Materials trap positions 2646 | -10/Subcaves | Visited Clippyterm 2651 | -10/Subcaves | Learned location of Section 7 (-3) 2651 | -10/Subcaves | Learned Factory fabricator intel 2944 | -10/Subcaves | Discovered new exit (range 16) 3135 | -10/Subcaves | Shifting Twisted Machinery released Barrage Gun 3156 | -10/Subcaves | Shifting Twisted Machinery released Shrapnel Trap 3575 | -10/Subcaves | Core integrity fell below 50% 3775 | -10/Subcaves | Discovered new exit (range 9) 4168 | -10/Subcaves | A swath of the cavern ceiling suddenly collapsed 4728 | -10/Subcaves | A swath of the cavern ceiling suddenly collapsed 5053 | -10/Subcaves | Discovered new exit (range 11) 5661 | -10/Subcaves | Visited 4L-MR0's lab 5693 | -10/Subcaves | Found Powered Cannon 5725 | -10/Subcaves | Core integrity fell below 20% 5806 | -10/Subcaves | Entered Scraptown 5874 | -7/Scraptown | Heard Great Nut preacher, LISTEN AND RECITE! 6244 | -7/Scraptown | Scanned Subdweller tech in exchange for log data 6249 | -7/Scraptown | Learned location of 2 exits from Proximity Caves 6251 | -7/Scraptown | Learned location of 1 exit from Research 6256 | -7/Scraptown | Learned location of 1 exit from Factory 6259 | -7/Scraptown | Learned 12 Research zone layouts 7154 | -7/Scraptown | Discovered new exit (range 5) 7359 | -7/Scraptown | Visited IN-MT5's Study 7477 | -7/Scraptown | Visited Bundlers 7652 | -7/Scraptown | Visited Shadow of the Wyrm 7670 | -7/Scraptown | Visited Awakened 7732 | -7/Scraptown | Visited Junk Repository 7919 | -7/Scraptown | Visited TADAMA 8039 | -7/Scraptown | Visited UFD Registry 8039 | -7/Scraptown | Registered with UFD as "Steeltalker" 8112 | -7/Scraptown | Visited DA-N13 Charitable Foundation 8127 | -7/Scraptown | Found DCF Scrap (31 items) 8204 | -7/Scraptown | Visited Abandonware Association 8238 | -7/Scraptown | Learned abandonware demo "POISON.EXE" 8301 | -7/Scraptown | Visited Junk Cannon Lab 8347 | -7/Scraptown | Visited Analyses Database 8397 | -7/Scraptown | Visited Derelict Rescue Squad 8417 | -7/Scraptown | Found DRS Beacon 8438 | -7/Scraptown | Build established: Derelict-Mutant 8459 | -7/Scraptown | Visited Junk Repository 8524 | -7/Scraptown | Visited Scrap Suit Storage 8620 | -7/Scraptown | Visited Chapter 10 8722 | -7/Scraptown | Visited Curators Association 8937 | -7/Scraptown | Visited Sword Containment 9297 | -7/Scraptown | Met Optimus 9297 | -7/Scraptown | Accepted into 0bPrime 9317 | -7/Scraptown | Civil war broke out across Scraptown 9331 | -7/Scraptown | Discovered new exit (range 5) 9350 | -7/Scraptown | Destroyed by NM-K6J(j) with Overtuned Pulse Rifle Last Messages --------------- 09319_ Penetrated by Bolt. 09321_ Optimus: "No holds barred, if they're hostile, they are an enemy of the people and we must shoot to kill. Collateral damage is to be expected!" 09331_ EXIT=FOUND 09334_ BD-T9B(x) destroyed. 09335_ EW-0AU(j) destroyed. 09337_ Acquired 110 matter. 09340_ JF-VHY(E) destroyed. 09342_ Penetrated by Bolt. 09343_ 08-D56(E) destroyed. 09345_ Bolt penetrates K4-YZ9(g). 09346_ XI-R5T(j) destroyed. 09346_ Dropped Imp. Light Armor Plating. 09346_ Imp. Light Armor Plating crushed and broken. 09347_ Acquired Mak. Hacking Suite. 09349_ K4-YZ9(g) heat spikes uncontrollably. 09349_ Sneak attack on K4-YZ9(g). 09349_ Aluminum Leg melted. 09349_ K4-YZ9(g) destroyed. Map ----- +----------------------------------------------------+ | | | | | | | | | | | | | | | | | | | | | | | | | ?????????????????????????????????????????????????? | | ?????????????????????????????????????????????????? | | ?????????????????????????????????????????????????? | | ?????????????????????????????????????????????????? | | ?????????????????????????????????????????????????? | | ?????????????????????????????????????????????????? | | ?????????????????????????????????????????????????? | | ?????????????????????????????????????????????????? | | ?????????????????????????????????????????????????? | | ?????????????????????????????????????????????????? | | ?????????????????????????????????????????????????? | | ???????????????????????#####?????????????????????? | | ???????????????????????#"!!#?????????????????????? | | ??????????????####?????#"@%#?????????????????????? | | ??????#""????## ##????#%jj#?????????????????????? | | ##""|##!!"#### ######xph##????????????????????? | | !![!==j[==#????????????????????? | | =![%![*/[=#????????????????????? | | ?############# ###########????????????????????? | | ?????????????## ##??????????????????????????????? | | #?????????????# #???????????????????????????????? | | #??############ #??#######??????????????????????? | | ####""""""""""# #??" !"#??????????????????????? | | "# " ### #??#" "#??????????????????????? | | ""##"" ## ####X ##??????????????????????? | | "*##"" ## #"! "#??????????????????????? | | ""##""" ## #"! !"#??????????????????????? | | "#"" ## #" "#??????????????????????? | | ""##"" ## #"! !"#??????????????????????? | | "[##"" ## #" !"#??????????????????????? | | ""##" ### ## ##??????????????????????? | | "# # # #??????????????????????? | | ######### ##### ## #######??????????????????????? | | ######### #####! ## #########????????????????????? | | """"""""" """""%="" "## #????????????????????? | | *= "## !#????????????????????? | | "## ####????????????????????? | | "## *!#????????????????????? | +----------------------------------------------------+ Best States ------------- Heat Dissipation 25 Energy Generation 16 Energy Capacity 290 Matter Stores 300 Matter Capacity 300 Sight Range 22 Terrain Scan Density 10 Armor Coverage 150 Evasion (%) 62 Recoil Reduction 2 Offensive Hacking 11 Item Schematics ----------------- None Robot Schematics ------------------ None Fabricated ------------ Nothing Repaired ---------- Nothing Alien Tech Used ----------------- None Achievements -------------- None Challenges ------------ None Game ------ Seed ArcsightMolecularLaser Manual? 0 Play Time 00:55:53 Cumulative 149.1 hours Start 2025.05.13 @ 15:42:06 End 2025.05.13 @ 17:13:40 Sessions 1 Manual Loads 0 Difficulty Rogue Special Mode None Game No. 103 Rogue 103 Adventurer 0 Explorer 0 Win Type - Total 6 Types 5/0/1/0/0/0/0/0/0/0 Lore% 62 Gallery% 56 Achievement% 52 Wizard Run 0 Options --------- Layout 0 ASCII 0 Keyboard 1 Movement Numpad Keybinds 0 Fullscreen 1 Font 24/Proggy Map View 76x56 Zoom Use 0% Tactical HUD 1 Map Filters NONE Filters NONE Steam 1 RUN: a9dfd405-c719-4ae2-ad1a-77d642e2075f